Cogmind - Beta 16.1 @@@ ROGUE MODE // 2026.04.21 @ 21:44:05 Player: Berg Result: Destroyed self via exploding Network Hub Performance ------------- Evolutions (5) 2500 Regions Visited (13) 2600 Robots Destroyed (61) 305 Value Destroyed (1731) 1731 Prototype IDs (2) 40 Alien Tech Used (0) 0 Bonus (341) 341 TOTAL SCORE: 7517 Bonus ------- Follower Combat Kills 141 Network Hubs Disabled 200 Cogmind --------- Core Integrity 0/1000 Matter 270/300 Energy 95/100 System Corruption 0% Temperature Cool (0) Movement Flying (45) Location -5/Hub_04(d) Parts ------- > --- POWER (2) -------- (None) > --- PROPULSION (6) --- Field Propulsion Drive > --- UTILITY (5) ------ Advanced Signal Interpreter Advanced Terrain Scan Processor Core Analyzer Hacking Suite > --- WEAPON (4) ------- Lance > --- INVENTORY (5) ---- Field Propulsion Drive Field Propulsion Drive Field Propulsion Drive Lance Lance Peak State ------------ > --- POWER ------------ Fission Core Fission Core > --- PROPULSION ------- Cooled Airjet Cooled Airjet Cooled Airjet Cooled Airjet Improved Gravmag System Gyrokinetic Inverter > --- UTILITY ---------- Improved Sensor Array Advanced Signal Interpreter Advanced Terrain Scanner Advanced Terrain Scan Processor Improved Reaction Control System > --- WEAPON ----------- Lance > --- INVENTORY -------- Reinforced Deuterium Engine Cesium-ion Thruster Xenon Bombardment Thruster Lance Lance [Rating: 71] Favorites ----------- Power Light Nuclear Core Engine Improved Ion Engine Power Core Light Nuclear Core Propulsion Compact Wheel Treads Light Treads Wheel Compact Wheel Hover Unit Cooled Airjet Flight Unit Xenon Bombardment Thruster Utility High-capacity Storage Unit Device Graphene Brace Storage High-capacity Storage Unit Processor Improved Signal Interpreter Hackware Hacking Suite Protection Medium Armor Plating Weapon Heavy Assault Rifle Energy Gun Small Laser Ballistic Gun Heavy Assault Rifle Launcher Grenade Launcher Slashing Weapon Chainsword Piercing Weapon Lance Build | -11 -10 -9 -9 -8 -7 -7 -7 -6 -5 -5 -5 -5 -5 ------- Run | Yrd Mat Mat Min Mat Fac Low Low Fac Fac Ext Cet Arc Hub Slots Evolved 10 | . . 2 . 2 2 . . 2 2 . . . . Power 1 | . . . . . . . . . 1 . . . . Propulsion 4 | . . 1 . . . . . 2 1 . . . . Utility 3 | . . 1 . 1 1 . . . . . . . . Weapon 2 | . . . . 1 1 . . . . . . . . Parts Attached 77 | 8 1 8 4 11 6 9 2 14 8 4 . . 2 Power 10 | 1 . 1 . 2 . 1 . 2 2 1 . . . Engine 5 | 1 . 1 . 1 . . . 1 . 1 . . . Core 5 | . . . . 1 . 1 . 1 2 . . . . Reactor . | . . . . . . . . . . . . . . Propulsion 24 | 2 . 3 2 2 1 1 2 7 2 1 . . 1 Treads 4 | 2 . . . . . . 2 . . . . . . Leg . | . . . . . . . . . . . . . . Wheel 9 | . . 3 2 2 1 1 . . . . . . . Hover 8 | . . . . . . . . 5 2 1 . . . Flight 3 | . . . . . . . . 2 . . . . 1 Utility 26 | 2 1 2 1 3 3 3 . 5 3 2 . . 1 Device 10 | 1 . . . 1 1 1 . 2 3 1 . . . Storage 2 | 1 1 . . . . . . . . . . . . Processor 7 | . . 1 . . 1 1 . 3 . 1 . . . Hackware 1 | . . . . . . . . . . . . . 1 Protection 6 | . . 1 1 2 1 1 . . . . . . . Artifact . | . . . . . . . . . . . . . . Weapon 17 | 3 . 2 1 4 2 4 . . 1 . . . . Energy Gun 1 | 1 . . . . . . . . . . . . . Energy Cannon . | . . . . . . . . . . . . . . Ballistic Gun 13 | 2 . 2 . 4 2 3 . . . . . . . Ballistic Cannon . | . . . . . . . . . . . . . . Launcher 1 | . . . 1 . . . . . . . . . . Special Weapon . | . . . . . . . . . . . . . . Impact Weapon . | . . . . . . . . . . . . . . Slashing Weapon 1 | . . . . . . 1 . . . . . . . Piercing Weapon 1 | . . . . . . . . . 1 . . . . Special Melee Weapon . | . . . . . . . . . . . . . . Unidentified Prototypes 2 | . . 1 . . . . . 1 . . . . . Parts Lost 42 | . . 3 . 5 4 10 3 1 1 9 4 2 . Power 5 | . . . . . . 1 1 . . 2 1 . . Propulsion 18 | . . 2 . 2 1 2 1 1 1 4 2 2 . Utility 11 | . . 1 . 2 1 3 . . . 3 1 . . Weapon 8 | . . . . 1 2 4 1 . . . . . . Highest Loss Streak 10 | . . 2 . 2 3 10 2 1 1 8 4 2 . To Critical Strikes 1 | . . . . . . . . . . . 1 . . Average Backups 12 | 3 6 14 19 16 15 12 10 4 5 4 4 4 3 Power 1 | . 1 1 1 1 2 2 2 1 1 . . . . Propulsion 2 | 1 2 2 3 2 1 1 1 1 2 2 2 2 1 Utility 4 | . 1 4 6 5 5 5 3 1 . . . . . Weapon 4 | . 1 6 9 7 5 2 1 . 1 2 2 2 2 Tool/Special . | . . . . . . . . . . . . . . Unused Backups 20 | . . . 1 6 2 . 3 1 1 . . . 6 Power 3 | . . . . 2 . . 1 . . . . . . Propulsion 5 | . . . 1 . . . . . . . . . 4 Utility 8 | . . . . 2 2 . 2 1 1 . . . . Weapon 4 | . . . . 2 . . . . . . . . 2 Tool/Special . | . . . . . . . . . . . . . . Average Slot Usage (%) 88 | . 100 88 100 97 96 93 64 47 80 76 36 27 32 Engine 4 | . 14 11 11 8 . . . 3 1 . 2 . . Core 3 | . . . . . 7 6 5 1 8 9 . . . Treads 2 | . 28 5 . . . . 1 . . . . . . Wheel 17 | . . 22 33 26 22 20 12 . . . . . . Hover 5 | . . . . . . . . 20 33 32 8 4 . Device 9 | . 14 1 . 7 14 15 13 5 16 14 1 . . Storage 7 | . 14 11 11 9 7 7 6 . . . . . . Processor 9 | . . 8 11 9 7 8 13 10 11 12 17 17 17 Protection 5 | . . 6 11 8 6 5 . . . . . . . Ballistic Gun 17 | . 28 21 11 26 28 26 9 . . . . . . Launcher 1 | . . . 10 . . . . . . . . . . Peak Build Rating 71 | 7 8 14 15 29 34 36 30 54 71 71 46 26 31 Average Rating 29 | 5 7 10 14 24 31 33 25 33 68 66 31 24 27 On Entrance 25 | . 7 8 14 15 29 33 30 1 54 71 46 26 20 Avg Prop Armor Cover (%) 7 | . . 13 . . . . . 5 5 . . . . Naked Turns 74 | . . . . . . . 10 64 . . . . . Heaviest Build 64 | 13 48 54 60 63 63 64 53 18 36 27 19 3 3 Greatest Support 53 | 40 40 42 42 42 42 42 51 40 53 53 30 11 7 Greatest Overweight (x) 3 | 3 1 1 1 2 2 1 2 . . . 1 . . Average Overweight (x) . | . . 1 1 1 1 1 . . . . . . . Largest Inventory Capacity 20 | 8 20 20 20 20 20 20 20 5 5 5 5 5 5 Average Capacity 15 | 7 11 20 20 20 20 20 18 5 5 5 5 5 5 Most Carried 20 | 5 13 19 20 20 19 17 11 5 5 5 4 4 5 Average Carried 12 | 3 7 14 19 19 15 12 10 4 4 4 4 3 4 Final Capacity 20 | 8 20 20 20 20 20 20 5 5 5 5 5 5 5 Final Carried 20 | 4 13 19 20 19 13 11 5 5 5 4 4 3 5 Class Distribution -------------------- 42% | Mutant 28% | Scavenger-Skirmisher 11% | Scout 7% | Scavenger-Tank 6% | Scavenger-Mutant 3% | Tank Dominant Class ---------------- Mutant | -10/Materials Mutant | -9/Materials Mutant | -9/Mines Scavenger-Tank | -8/Materials Scavenger-Skirmisher | -7/Factory Scavenger-Skirmisher | -7/Lower Caves Scavenger-Mutant | -7/Lower Caves Mutant | -6/Factory Scout | -5/Factory Scout | -5/Extension Mutant | -5/Cetus Mutant | -5/Archives Mutant | -5/Hub_04(d) Resources | -11 -10 -9 -9 -8 -7 -7 -7 -6 -5 -5 -5 -5 -5 ----------- Run | Yrd Mat Mat Min Mat Fac Low Low Fac Fac Ext Cet Arc Hub Matter Collected 2312 | 270 56 127 293 530 301 433 . . 287 15 . . . Remotely . | . . . . . . . . . . . . . . Salvage Created 2199 | 119 114 312 137 702 166 165 . . 334 150 . . . Parts 146 | 4 11 19 13 39 16 12 . . 28 4 . . . Haulers Intercepted . | . . . . . . . . . . . . . . Recyclers Shooed 6 | . 1 3 . 1 1 . . . . . . . . Parts Field Recycled . | . . . . . . . . . . . . . . Retrieved Matter . | . . . . . . . . . . . . . . Parts Self-Destructed 12 | . . . . . . 12 . . . . . . . Prevented . | . . . . . . . . . . . . . . Parts Restored . | . . . . . . . . . . . . . . Kills | -11 -10 -9 -9 -8 -7 -7 -7 -6 -5 -5 -5 -5 -5 ------- Run | Yrd Mat Mat Min Mat Fac Low Low Fac Fac Ext Cet Arc Hub Combat Hostiles Destroyed 44 | . 4 4 5 17 5 3 . . 6 . . . . Melee 6 | . . . . . . . . . 6 . . . . Guns 37 | . 4 4 4 17 5 3 . . . . . . . AOE 1 | . . . 1 . . . . . . . . . . Classes Destroyed 15 | 2 3 2 . 1 1 2 . . 4 . . . . Worker 7 | . . 1 . 1 . . . . 5 . . . . Builder 1 | . . . . . . . . . 1 . . . . Tunneler 3 | 1 . . 2 . . . . . . . . . . Recycler 3 | 1 . 1 . . . . . . . 1 . . . Operator 1 | . . . . . . . . . 1 . . . . Watcher 2 | . 1 . . . . . . . . 1 . . . Swarmer 18 | . 2 . 4 4 3 1 . . 4 . . . . Cutter 1 | . . . . . . . . . 1 . . . . Grunt 16 | . 2 2 1 11 . . . . . . . . . Sentry 3 | . . 2 . 1 . . . . . . . . . Hunter 1 | . . . . . . . . . 1 . . . . Programmer 2 | . . . . . 2 . . . . . . . . Heavy 1 | . . . . 1 . . . . . . . . . Behemoth 1 | . . . . . . 1 . . . . . . . Mutant 1 | . . . . . . 1 . . . . . . . Best Kill Streak 5 | 1 2 2 4 4 4 1 . . 5 1 . . . Combat Bots Only 4 | . 1 2 4 4 4 1 . . 4 . . . . Max Kills in Single Turn 3 | 1 1 1 2 3 1 1 . . 1 1 . . . Gunslinging 1 | . . . 1 1 . . . . . . . . . Exploded 1 | . . . 1 . . . . . . . . . . Melee 1 | . . . . . . . . . 1 . . . . Uniques/NPCs Destroyed . | . . . . . . . . . . . . . . Combat | -11 -10 -9 -9 -8 -7 -7 -7 -6 -5 -5 -5 -5 -5 -------- Run | Yrd Mat Mat Min Mat Fac Low Low Fac Fac Ext Cet Arc Hub Hostile Shots Fired 507 | . 32 55 20 83 35 70 47 . 49 55 45 16 . Missed 169 | . 9 17 7 20 9 23 15 . 22 24 17 6 . Hits 338 | . 23 38 13 63 26 47 32 . 27 31 28 10 . Projectile 338 | . 23 38 13 63 26 47 32 . 27 31 28 10 . AOE 1 | . . . . . . . . . 1 . . . . Critical Strikes 10 | . . 1 . 2 . . . . 1 2 4 . . Damage Taken 6007 | . 228 509 130 1008 384 1143 381 . 517 638 747 268 54 Core 1878 | . 42 115 . 182 104 267 120 . 56 233 491 214 54 Absorbed by Shields . | . . . . . . . . . . . . . . Ignored by Resistances 99 | . . . . . 3 50 . . . . 46 . . Core Remaining (%) 74 | 100 83 . 71 66 . . 29 100 . . . . . Volleys Fired 184 | 14 36 36 9 48 15 24 2 . . . . . . Largest 4 | 1 1 2 2 3 4 4 1 . . . . . . Hottest 94 | 40 20 40 43 68 88 94 23 . . . . . . Shots Fired 424 | 14 36 72 15 144 57 84 2 . . . . . . Gun 421 | 14 36 72 12 144 57 84 2 . . . . . . Cannon . | . . . . . . . . . . . . . . Launcher 3 | . . . 3 . . . . . . . . . . Special . | . . . . . . . . . . . . . . Kinetic 407 | . 36 72 12 144 57 84 2 . . . . . . Thermal 14 | 14 . . . . . . . . . . . . . Explosive 3 | . . . 3 . . . . . . . . . . Electromagnetic . | . . . . . . . . . . . . . . Robot Hit Streak 17 | 4 10 11 11 17 6 8 6 . . . . . . Robot Miss Streak 5 | 1 3 3 2 3 5 5 1 . . . . . . Penetration Max . | . . . . . . . . . . . . . . Secondary Targets 8 | . . . 1 5 2 . . . . . . . . Max Gunslinging Chain 1 | . . . 1 1 1 . . . . . . . . Shots Hit Robots 306 | 10 23 59 6 99 32 53 1 . 21 2 . . . Core Hits 118 | 3 11 17 8 40 12 13 . . 12 2 . . . Critical Kills 1 | . . 1 . . . . . . . . . . . Critical Parts Destroyed 1 | . . 1 . . . . . . . . . . . Critical Strikes 3 | . . 2 . . . . . . 1 . . . . Destroy 2 | . . 2 . . . . . . . . . . . Impale 1 | . . . . . . . . . 1 . . . . Melee Attacks 50 | . . . . . . 2 . 1 33 7 1 4 2 Impact . | . . . . . . . . . . . . . . Slashing 3 | . . . . . . 2 . 1 . . . . . Piercing 47 | . . . . . . . . . 33 7 1 4 2 Sneak Attacks 11 | . . . . . . . . . 10 1 . . . Combat Hostiles . | . . . . . . . . . . . . . . Follow-up Attacks . | . . . . . . . . . . . . . . Damage Inflicted 5242 | 108 182 495 255 1459 454 875 17 . 1257 140 . . . Guns 3624 | 108 182 484 87 1459 451 836 17 . . . . . . Cannons . | . . . . . . . . . . . . . . Explosions 124 | . . . 124 . . . . . . . . . . Melee 1436 | . . . . . . 39 . . 1257 140 . . . Ramming 58 | . . 11 44 . 3 . . . . . . . . Kinetic 3516 | . 182 484 87 1459 451 836 17 . . . . . . Thermal 108 | 108 . . . . . . . . . . . . . Explosive 124 | . . . 124 . . . . . . . . . . Electromagnetic . | . . . . . . . . . . . . . . Impact . | . . . . . . . . . . . . . . Slashing 39 | . . . . . . 39 . . . . . . . Piercing 1397 | . . . . . . . . . 1257 140 . . . Highest Corruption 5 | . . 5 5 2 4 4 4 2 . . . . . Average Corruption 3 | . . 5 5 2 1 4 4 2 . . . . . Corruption Purged . | . . . . . . . . . . . . . . Corruption Blocked . | . . . . . . . . . . . . . . Effects 58 | . . 2 17 3 7 25 3 1 . . . . . Message Errors 11 | . . . 5 1 2 2 1 . . . . . . Matter Fused 9 | . . . 5 . 1 3 . . . . . . . Heat Flow Errors 11 | . . 1 2 2 1 3 1 1 . . . . . Energy Discharges 8 | . . . 2 . 2 4 . . . . . . . Parts Rejected 1 | . . . . . . 1 . . . . . . . Parts Fused 2 | . . . 1 . . 1 . . . . . . . Data Loss (minor) 8 | . . 1 2 . . 5 . . . . . . . Data Loss (major) 3 | . . . . . . 2 1 . . . . . . Misfires 3 | . . . . . . 3 . . . . . . . Alerts 2 | . . . . . 1 1 . . . . . . . Overload Shots . | . . . . . . . . . . . . . . Overflow Damage 110 | . . . . . . . . . 110 . . . . Projectiles . | . . . . . . . . . . . . . . Explosions . | . . . . . . . . . . . . . . Melee 110 | . . . . . . . . . 110 . . . . Knockbacks . | . . . . . . . . . . . . . . Impact . | . . . . . . . . . . . . . . Kinetic . | . . . . . . . . . . . . . . Secondary . | . . . . . . . . . . . . . . Self-Inflicted Damage 137 | . . 5 22 . 1 . . . . . . . 109 Shots 1 | . . . . . . . . . . . . . 1 Rammed 4 | . . 1 2 . 1 . . . . . . . . Targets Rammed 4 | . . 1 2 . 1 . . . . . . . . Kicked . | . . . . . . . . . . . . . . Crushed . | . . . . . . . . . . . . . . Highest Temperature 278 | . 9 210 225 278 98 217 . 190 . 7 . . . Average Temperature 51 | . 9 33 73 64 29 35 . 100 . 6 . . . Received Heat Transfer 1395 | . 51 258 18 495 9 132 99 . 42 129 117 45 . Siege Activations . | . . . . . . . . . . . . . . Martial Activations . | . . . . . . . . . . . . . . Shielding Activations . | . . . . . . . . . . . . . . Robots Disrupted . | . . . . . . . . . . . . . . Combat Hostiles . | . . . . . . . . . . . . . . Robots Corrupted . | . . . . . . . . . . . . . . Combat Hostiles . | . . . . . . . . . . . . . . Parts Fried . | . . . . . . . . . . . . . . Impact Corruptions . | . . . . . . . . . . . . . . Robots Melted . | . . . . . . . . . . . . . . Combat Hostiles . | . . . . . . . . . . . . . . Parts Melted . | . . . . . . . . . . . . . . Heat Transferred 250 | 250 . . . . . . . . . . . . . Parts Sabotaged . | . . . . . . . . . . . . . . Parts Stolen . | . . . . . . . . . . . . . . Parts Stripped . | . . . . . . . . . . . . . . Power Chain Reactions . | . . . . . . . . . . . . . . Alert | -11 -10 -9 -9 -8 -7 -7 -7 -6 -5 -5 -5 -5 -5 ------- Run | Yrd Mat Mat Min Mat Fac Low Low Fac Fac Ext Cet Arc Hub Maximum Alert Level 1 | . . . . . . . . . 1 . . . . Low Security (%) 99 | 100 100 100 100 100 100 . . 100 97 100 100 100 100 Level 1 . | . . . . . . . . . 2 . . . . Level 2 . | . . . . . . . . . . . . . . Level 3 . | . . . . . . . . . . . . . . Level 4 . | . . . . . . . . . . . . . . Level 5 . | . . . . . . . . . . . . . . High Security . | . . . . . . . . . . . . . . Max Security . | . . . . . . . . . . . . . . Peak Influence 223 | 5 80 50 80 192 83 . . 65 223 105 22 15 15 Initial 105 | . . . . 23 83 . . . . 105 22 . . Average 29 | . 32 14 15 77 15 . . 27 59 38 5 5 4 Influence Increases 2010 | 10 157 131 268 468 154 128 . 120 329 196 2 17 30 Destroy 0b10 Robot/C 1020 | . 80 80 200 340 100 100 . . 120 . . . . Destroy 0b10 Robot/NC 85 | 10 5 10 10 5 . . . . 35 10 . . . Destroy Leader 194 | . 22 30 20 60 30 20 . . 10 2 . . . Allied During Kill 26 | . . . 18 . . 8 . . . . . . . Successful Hack 44 | . 20 11 . . 9 . . . 4 . . . . Disable Machine 60 | . . . . . . . . 15 . . . 15 30 Destroy Structure 41 | . . . 20 3 . . . . 10 4 2 2 . Partial Spotted 135 | . . . . . 15 . . 75 45 . . . . Lose Combat Pursuer 405 | . 30 . . 60 . . . 30 105 180 . . . Influence Decreases 1995 | 10 157 131 207 345 287 179 . 120 112 372 43 17 15 Entered New Map 290 | . . . . 38 101 20 . . . 112 19 . . Time Decay 1396 | 10 157 121 187 254 146 91 . 110 102 197 4 2 15 Lost Part 246 | . . 10 . 50 40 28 . 10 10 63 20 15 . Lost Ally 63 | . . . 20 3 . 40 . . . . . . . Squads Dispatched 11 | . . . . 3 3 . . . 4 1 . . . Investigation 2 | . . . . 1 . . . . 1 . . . . Extermination 3 | . . . . . 2 . . . 1 . . . . Reinforcement 5 | . . . . 2 . . . . 2 1 . . . Assault 1 | . . . . . 1 . . . . . . . . Garrison . | . . . . . . . . . . . . . . Intercept . | . . . . . . . . . . . . . . Searches Triggered . | . . . . . . . . . . . . . . Construction Impeded . | . . . . . . . . . . . . . . Haulers Reinforced . | . . . . . . . . . . . . . . Active Scanning Responses . | . . . . . . . . . . . . . . Cargo Convoy Interrupts . | . . . . . . . . . . . . . . Stealth | -11 -10 -9 -9 -8 -7 -7 -7 -6 -5 -5 -5 -5 -5 --------- Run | Yrd Mat Mat Min Mat Fac Low Low Fac Fac Ext Cet Arc Hub Distress Signals 12 | . 4 1 . 2 . . . . 1 3 1 . . Communications Jammed . | . . . . . . . . . . . . . . Distress Signals . | . . . . . . . . . . . . . . Times Spotted 117 | . 10 8 7 26 10 5 4 2 18 17 5 4 1 Peak Tracking Total 9 | . 4 5 4 6 4 4 4 2 6 9 5 4 1 Tactical Retreats 15 | . 2 . . 2 . . . 1 5 5 . . . Traps | -11 -10 -9 -9 -8 -7 -7 -7 -6 -5 -5 -5 -5 -5 ------- Run | Yrd Mat Mat Min Mat Fac Low Low Fac Fac Ext Cet Arc Hub Traps Triggered 9 | . . . . 2 4 . . 1 1 1 . . . Indirectly . | . . . . . . . . . . . . . . Trap Hack Attempts . | . . . . . . . . . . . . . . Triggered . | . . . . . . . . . . . . . . Disarmed . | . . . . . . . . . . . . . . Reprogrammed . | . . . . . . . . . . . . . . Reused . | . . . . . . . . . . . . . . Traps Extracted . | . . . . . . . . . . . . . . Installed . | . . . . . . . . . . . . . . Triggered . | . . . . . . . . . . . . . . Machines | -11 -10 -9 -9 -8 -7 -7 -7 -6 -5 -5 -5 -5 -5 ---------- Run | Yrd Mat Mat Min Mat Fac Low Low Fac Fac Ext Cet Arc Hub Machines Disabled 5 | . . . . . . 1 . 1 . . . 1 2 Max in Single Turn 1 | . . . . . . 1 . 1 . . . 1 1 Network Hub 1 | . . . . . . . . . . . . . 1 Machines Repaired . | . . . . . . . . . . . . . . Machines Dismantled . | . . . . . . . . . . . . . . Machines Sabotaged . | . . . . . . . . . . . . . . Overloaded Fab Kills . | . . . . . . . . . . . . . . Hacking | -11 -10 -9 -9 -8 -7 -7 -7 -6 -5 -5 -5 -5 -5 --------- Run | Yrd Mat Mat Min Mat Fac Low Low Fac Fac Ext Cet Arc Hub Machines Accessed 16 | . 5 2 . 2 3 . . . 1 2 1 . . Terminals 16 | . 5 2 . 2 3 . . . 1 2 1 . . Fabricators . | . . . . . . . . . . . . . . Repair Stations . | . . . . . . . . . . . . . . Recycling Units . | . . . . . . . . . . . . . . Scanalyzers . | . . . . . . . . . . . . . . Garrison Access . | . . . . . . . . . . . . . . Total Hacks 43 | . 12 9 . 6 6 . . . 3 4 3 . . Successful 16 | . 4 4 . 3 2 . . . 1 2 . . . Failed 27 | . 8 5 . 3 4 . . . 2 2 3 . . Catastrophic 6 | . 3 1 . . . . . . . 1 1 . . Database Lockouts . | . . . . . . . . . . . . . . Manual 33 | . 10 9 . 7 5 . . . . 2 . . . Terminals 43 | . 12 9 . 6 6 . . . 3 4 3 . . Fabricators . | . . . . . . . . . . . . . . Repair Stations . | . . . . . . . . . . . . . . Recycling Units . | . . . . . . . . . . . . . . Scanalyzers . | . . . . . . . . . . . . . . Garrison Access . | . . . . . . . . . . . . . . Terminal Hacks 10 | . 4 2 . . 1 . . . 1 2 . . . Record 1 | . . . . . . . . . . 1 . . . Robot Analysis 2 | . 2 . . . . . . . . . . . . Open Door 1 | . . . . . . . . . 1 . . . . Open DSF 1 | . . . . . 1 . . . . . . . . Emergency Access Points 1 | . 1 . . . . . . . . . . . . Terminal Index 2 | . 1 1 . . . . . . . . . . . Alert Level 1 | . . . . . . . . . . 1 . . . Zone Layout 1 | . . 1 . . . . . . . . . . . Fabricator Hacks . | . . . . . . . . . . . . . . Repair Station Hacks . | . . . . . . . . . . . . . . Recycling Unit Hacks . | . . . . . . . . . . . . . . Scanalyzer . | . . . . . . . . . . . . . . Garrison Access Hacks . | . . . . . . . . . . . . . . Unauthorized Hacks 6 | . . 2 . 3 1 . . . . . . . . Terminals 6 | . . 2 . 3 1 . . . . . . . . Track 2 | . . 1 . 1 . . . . . . . . . Botnet 4 | . . 1 . 2 1 . . . . . . . . Fabricators . | . . . . . . . . . . . . . . Repair Stations . | . . . . . . . . . . . . . . Recycling Units . | . . . . . . . . . . . . . . Scanalyzers . | . . . . . . . . . . . . . . Garrison Access . | . . . . . . . . . . . . . . Data Cores Recovered 1 | . . . . . . . . . 1 . . . . Used . | . . . . . . . . . . . . . . Hacking Detections 14 | . 5 2 . 2 2 . . . 1 1 1 . . Full Trace Events 1 | . . . . . . . . . 1 . . . . Feedback Events . | . . . . . . . . . . . . . . Feedback Blocked . | . . . . . . . . . . . . . . Robot Schematics Acquired . | . . . . . . . . . . . . . . Robots Built . | . . . . . . . . . . . . . . Authchips . | . . . . . . . . . . . . . . Time . | . . . . . . . . . . . . . . Total Robot Build Rating . | . . . . . . . . . . . . . . Part Schematics Acquired . | . . . . . . . . . . . . . . Parts Built . | . . . . . . . . . . . . . . Authchips . | . . . . . . . . . . . . . . Time . | . . . . . . . . . . . . . . Total Part Build Rating . | . . . . . . . . . . . . . . Part Studies Acquired . | . . . . . . . . . . . . . . Parts Repaired . | . . . . . . . . . . . . . . Time . | . . . . . . . . . . . . . . Parts Recycled . | . . . . . . . . . . . . . . Recycled Matter . | . . . . . . . . . . . . . . Retrieved Matter . | . . . . . . . . . . . . . . Retrieved Components . | . . . . . . . . . . . . . . Parts Scanalyzed . | . . . . . . . . . . . . . . Part Schematics Acquired . | . . . . . . . . . . . . . . Parts Damaged . | . . . . . . . . . . . . . . Bothacking | -11 -10 -9 -9 -8 -7 -7 -7 -6 -5 -5 -5 -5 -5 ------------ Run | Yrd Mat Mat Min Mat Fac Low Low Fac Fac Ext Cet Arc Hub Used RIF Installer . | . . . . . . . . . . . . . . Robots Hacked . | . . . . . . . . . . . . . . Non-combat . | . . . . . . . . . . . . . . Combat . | . . . . . . . . . . . . . . Robot Hacks Applied . | . . . . . . . . . . . . . . Relay Couplers Released . | . . . . . . . . . . . . . . Fabnet Peak Effective % . | . . . . . . . . . . . . . . Robots Rewired 3 | . . . . . . 3 . . . . . . . Allies Hacked . | . . . . . . . . . . . . . . Hacks Repelled . | . . . . . . . . . . . . . . Allies | -11 -10 -9 -9 -8 -7 -7 -7 -6 -5 -5 -5 -5 -5 -------- Run | Yrd Mat Mat Min Mat Fac Low Low Fac Fac Ext Cet Arc Hub Total Allies 6 | . . . 3 . . 3 . . . . . . . Largest Group 3 | . . . 3 2 . 3 . . . . . . . Highest-Rated Group 48 | . . . 40 32 . 48 . . . . . . . Highest-Rated Ally 16 | . . . 16 16 . 16 . . . . . . . Total Orders . | . . . . . . . . . . . . . . Ally Attacks 46 | . . . 18 11 . 17 . . . . . . . Total Damage 523 | . . . 213 149 . 161 . . . . . . . Kills 8 | . . . 5 . . 3 . . . . . . . Allies Corrupted . | . . . . . . . . . . . . . . Allies Melted . | . . . . . . . . . . . . . . Intel | -11 -10 -9 -9 -8 -7 -7 -7 -6 -5 -5 -5 -5 -5 ------- Run | Yrd Mat Mat Min Mat Fac Low Low Fac Fac Ext Cet Arc Hub Active Infowar (turns) 2896 | 13 387 40 . . 819 819 . 104 306 408 . . . Sensors 2456 | . . . . . 819 819 . 104 306 408 . . . Terrain 653 | . . . . . . . . . 248 405 . . . Seismic 440 | 13 387 40 . . . . . . . . . . . Robot Analysis Total 2 | . 2 . . . . . . . . . . . . Derelict Logs Recovered 2 | . . . 1 . . . 1 . . . . . . Drone Launches . | . . . . . . . . . . . . . . Drone Recoveries . | . . . . . . . . . . . . . . Exploration | -11 -10 -9 -9 -8 -7 -7 -7 -6 -5 -5 -5 -5 -5 ------------- Run | Yrd Mat Mat Min Mat Fac Low Low Fac Fac Ext Cet Arc Hub Turns Passed 5729 | 125 387 386 974 556 895 1097 91 253 306 468 60 42 89 Spaces Moved 4866 | 52 157 227 652 284 563 844 85 455 593 657 86 42 169 Core 222 | 10 . . . . . . 21 109 . . . 16 66 Treads 214 | 42 157 13 . . . . 2 . . . . . . Legs . | . . . . . . . . . . . . . . Wheels 2619 | . . 214 652 284 563 844 62 . . . . . . Hover 1664 | . . . . . . . . 302 593 657 86 26 . Flight 147 | . . . . . . . . 44 . . . . 103 Fastest Speed 31 | 50 160 105 108 101 101 108 50 34 31 35 52 50 45 Average Speed 82 | 155 185 115 108 103 101 109 100 38 32 37 66 62 46 Slowest Speed 240 | 200 240 240 108 120 120 115 160 50 38 56 110 70 50 Overloaded Moves . | . . . . . . . . . . . . . . Propulsion Burnouts . | . . . . . . . . . . . . . . Robots Hopped 1 | . . . . . . . . . . . . . 1 Potential Cave-ins 3 | . . . . . . 1 . . . 2 . . . Cave-ins Triggered . | . . . . . . . . . . . . . . Exploration Rate (%) 38 | 4 30 20 98 33 16 92 15 13 23 67 56 56 18 Regions Visited 13 Branch Regions 7 Pre-discovered Areas . | . . . . . . . . . . . . . . Known Exits Taken 10 | . . 1 1 1 1 1 . 1 1 1 1 1 . Unknown Exits Taken 3 | 1 1 . . . . . 1 . . . . . . Scrap Searched 4 | . . . 1 . . 2 1 . . . . . . Spaces Dug 11 | . . . . . . . . . 5 4 1 1 . Terrain Destroyed 34 | . . . 23 . . . . . 5 4 1 1 . Melee 11 | . . . . . . . . . 5 4 1 1 . Projectile . | . . . . . . . . . . . . . . AOE 23 | . . . 23 . . . . . . . . . . Terrain Rammed . | . . . . . . . . . . . . . . Walls Destroyed . | . . . . . . . . . . . . . . Machines Disabled . | . . . . . . . . . . . . . . Actions | -11 -10 -9 -9 -8 -7 -7 -7 -6 -5 -5 -5 -5 -5 --------- Run | Yrd Mat Mat Min Mat Fac Low Low Fac Fac Ext Cet Arc Hub Total 6219 | 79 224 294 910 446 854 963 88 526 656 864 87 51 177 Wait 915 | . 23 9 238 80 261 38 . 50 14 195 1 5 1 Move 4851 | 51 156 226 651 283 562 843 84 454 592 656 85 41 167 Hop 1 | . . . . . . . . . . . . . 1 Pick Up 47 | 4 8 9 2 9 3 6 . 1 2 . . . 3 Fast Attach 43 | 7 . 4 . 2 4 1 . 13 7 3 . . 2 Attach 28 | 1 . 3 . 6 4 8 2 2 . 1 . 1 . Detach 8 | 1 . 2 . 1 1 . . 2 1 . . . . Swap 15 | 1 1 1 4 5 . 1 . 1 1 . . . . Drop 31 | . . 3 4 12 3 . . 2 6 . . . 1 Fire 184 | 14 36 36 9 48 15 24 2 . . . . . . Melee 50 | . . . . . . 2 . 1 33 7 1 4 2 Ram 4 | . . 1 2 . 1 . . . . . . . . Kick . | . . . . . . . . . . . . . . Crush . | . . . . . . . . . . . . . . Escape Stasis 2 | . . . . . . . . . . 2 . . . Rewire 40 | . . . . . . 40 . . . . . . . Trap . | . . . . . . . . . . . . . . Miscellaneous . | . . . . . . . . . . . . . . Route ------- -11/Scrapyard -10/Materials -9/Materials -9/Mines (discovered 2 exits: *Mat x2) -8/Materials -7/Factory -7/Lower Caves -7/Lower Caves -6/Factory -5/Factory -5/Extension (discovered 2 exits: *Fac / *Cet) -5/Cetus -5/Archives -5/Hub_04(d) History --------- Turn | Location | Event 19 | -11/Scrapyard | Discovered new exit (range 16) 126 | -11/Scrapyard | Entered Materials 316 | -10/Materials | Build established: Mutant 408 | -10/Materials | Discovered new exit (range 14) 513 | -10/Materials | Entered another Materials area 513 | -9/Materials | Evolved 2 slots: Propulsion x1, Utility x1 856 | -9/Materials | Discovered new exit (range 12) 896 | -9/Materials | Identified exit to Mines 899 | -9/Materials | Entered Mines 916 | -9/Mines | Discovered new exit (range 8) 941 | -9/Mines | Identified exit to Materials 967 | -9/Mines | Met a Derelict testing a Signal Generator 977 | -9/Mines | Found Signal Generator 1195 | -9/Mines | Assisted by bots powering up and referring to "LRC-V3" 1656 | -9/Mines | Discovered exit to Materials (range 14) 1802 | -9/Mines | Learned Materials terminal intel 1873 | -9/Mines | Entered Materials 1873 | -8/Materials | Accompanied by 2 allies 1873 | -8/Materials | Evolved 2 slots: Utility x1, Weapon x1 1874 | -8/Materials | Loaded intel: 12 terminal locations 1978 | -8/Materials | Found Prototype Device 2331 | -8/Materials | Discovered new exit (range 16) 2390 | -8/Materials | Build established: Scavenger-Tank 2428 | -8/Materials | Identified exit to Factory 2429 | -8/Materials | Entered Factory 2429 | -7/Factory | Evolved 2 slots: Utility x1, Weapon x1 2811 | -7/Factory | Build established: Scavenger-Skirmisher 3280 | -7/Factory | Discovered new exit (range 7) 3286 | -7/Factory | Identified exit to Lower Caves 3297 | -7/Factory | Lost 3 parts (1n1u1w) 3324 | -7/Factory | Entered Lower Caves 3760 | -7/Lower Caves | Discovered new exit (range 15) 3775 | -7/Lower Caves | Identified exit to Lower Caves 3896 | -7/Lower Caves | Attacked by a delusional Derelict stockpiling Unaware 4105 | -7/Lower Caves | Spotted B-75 Beast 4166 | -7/Lower Caves | Core integrity fell below 50% 4171 | -7/Lower Caves | Destroyed B-75 Beast 4196 | -7/Lower Caves | Lost 10 parts (1p2n3u4w) 4421 | -7/Lower Caves | Entered another Lower Caves area 4435 | -7/Lower Caves | Build established: Scavenger-Mutant 4435 | -7/Lower Caves | Learned Factory stockpile data 4451 | -7/Lower Caves | Spotted B-75 Beast 4489 | -7/Lower Caves | Attracted the attention of an 0b10 checkpoint 4502 | -7/Lower Caves | Released all parts (9) 4509 | -7/Lower Caves | Discovered new exit (range 6) 4512 | -7/Lower Caves | Entered Factory 4512 | -6/Factory | Evolved 2 slots: Propulsion x2 4749 | -6/Factory | Discovered new exit (range 15) 4754 | -6/Factory | Identified exit to Factory 4765 | -6/Factory | Entered another Factory area 4765 | -5/Factory | Evolved 2 slots: Power x1, Propulsion x1 4826 | -5/Factory | Discovered new exit (range 13) 4943 | -5/Factory | Allied Derelicts emerged from ambush trap array 5025 | -5/Factory | Spotted B-75 Beast 5070 | -5/Factory | Identified exit to Extension 5071 | -5/Factory | Entered Extension 5081 | -5/Extension | Build established: Scout 5314 | -5/Extension | Spotted B-75 Beast 5474 | -5/Extension | Spotted B-75 Beast 5519 | -5/Extension | Discovered new exit (range 16) 5519 | -5/Extension | Discovered new exit (range 16) 5530 | -5/Extension | Identified exit to Factory 5532 | -5/Extension | Identified exit to Cetus 5536 | -5/Extension | Lost 8 parts (2p4n2u) 5539 | -5/Extension | Entered Cetus 5547 | -5/Cetus | Spotted Cetus Guard 5547 | -5/Cetus | Spotted Cetus Guard 5548 | -5/Cetus | Spotted Cetus Guard 5548 | -5/Cetus | Spotted Cetus Guard 5561 | -5/Cetus | Core integrity fell below 50% 5589 | -5/Cetus | Discovered new exit (range 16) 5593 | -5/Cetus | Lost 4 parts (1p2n1u) 5599 | -5/Cetus | Identified exit to Archives 5599 | -5/Cetus | Entered Archives 5631 | -5/Archives | Core integrity fell below 20% 5631 | -5/Archives | Unable to access archive contents 5633 | -5/Archives | Discovered new exit (range 16) 5641 | -5/Archives | Identified exit to Hub_04(d) 5641 | -5/Archives | Entered Hub_04(d) 5666 | -5/Hub_04(d) | Disrupted transfer network 5730 | -5/Hub_04(d) | Network Hub disabled 5730 | -5/Hub_04(d) | Destroyed self via exploding Network Hub Last Messages --------------- 05633_ Archive Terminal disabled. 05633_ EXIT=FOUND 05635_ Xenon Bombardment Thruster destroyed. 05635_ Penetrated by Slug. 05640_ Slug penetrates Wall. 05641_ EXIT=IDENTIFIED: HUB_04(D) LOCATION=HUB_04(D) GOAL=ESCAPE 05646_ Acquired Hacking Suite. 05651_ K-01 Serf collects debris. 05662_ Transfer Station disabled. 05666_ ALERT: Transfer network disrupted, dispatching garrison force. 05671_ K-01 Serf collects debris. 05679_ Acquired Field Propulsion Drive. 05683_ Dropped Cesium-ion Thruster. 05683_ Acquired Field Propulsion Drive. 05719_ Connecting with Terminal... 05730_ ALERT: Network intrusion management efficiency reduced by 20%. Dispatching hub defense squads. All non-combat units evacuate. 05730_ Network Hub explodes. Map ----- +----------------------------------------------------+ | ????????????????????????????????????# ########+# | | ???????????????????????????????????## | | ????????????????????????????????+ | | ????????????????????????????????????# | | ?????????????????????????????????######+########## | | ????????????????????????????????# # "" | | ????????????????????????????????# """ """ """ # "T | | ????????????????????????????????# # | | ????????????????????????????????# """ """ """ + | | ????????????????????????????????# #""" | | ????????????????????????????????# """ """ """ #""" | | ????????????????????????????????# #""" | | ????????????????????????????????# """ """ """ #""" | | ????????????????????????????????# # | | ????????????????????????????????# """ """ """ #### | | ????????????????????????????????# #??? | | ????????????????????????????????##+####+#######??? | | ?????????????????????????????????# ## ######??? | | ?????????????????????????????????# "T #??? | | ?????????????????????????????????#### "" #??? | | ????????????????????????????????????# ### #??? | | ??????????????????############??????## ##??? #??? | | ??????????????????# #???????# #????????? | | ??????????????????# #???????# #????????? | | ??????????????????# ! #???????# #????????? | | ??????????????????# @ ######### #????????? | | ??????????????????# + #????????? | | ??????????????????# + #????????? | | ??????????????????# ###+#####+##????????? | | ??????????????????# ## #????????? | | ??????????????????# ## """ """ #????????? | | ??????????????????# ## #????????? | | ??????????????????# ## """ """ #????????? | | ??????????????????############# #????????? | | ??????????????????????????????# """ """ #????????? | | ??????????????????????????????# #????????? | | ??????????????????????????????# #????????? | | ??????????????????????????????###########????????? | | ?????????????????????????????????????????????????? | | ?????????????????????????????????????????????????? | | ?????????????????????????????????????????????????? | | ?????????????????????????????????????????????????? | | ?????????????????????????????????????????????????? | | | | | | | | | | | | | | | +----------------------------------------------------+ Best States ------------- Heat Dissipation 40 Energy Generation 31 Energy Capacity 520 Matter Stores 300 Matter Capacity 300 Sight Range 16 Robot Scan Range 15 Terrain Scan Range 20 Terrain Scan Density 210 Armor Coverage 225 Resistance: TH 20 Resistance: EX 50 Weapon Cycling 15 Evasion (%) 68 Targeting Accuracy 6 Core Analysis 6 Recoil Reduction 2 Offensive Hacking 10 Item Schematics ----------------- None Robot Schematics ------------------ None Fabricated ------------ Nothing Repaired ---------- Nothing Studied --------- None Alien Tech Used ----------------- None Achievements -------------- I Laugh At Your Crits Challenges ------------ None Game ------ Seed RegenerativeMediumDetonator Manual? 0 Play Time 01:04:41 Cumulative 101.1 hours Start 2026.04.20 @ 22:34:34 End 2026.04.21 @ 21:44:05 Sessions 3 Manual Loads 0 Difficulty Rogue Special Mode None Game No. 93 Rogue 93 Adventurer 0 Explorer 0 Win Type - Total 1 Types 1/0/0/0/0/0/0/0/0/0 Lore% 34 Gallery% 42 Achievement% 27 Wizard Run 0 Options --------- Layout 0 ASCII 0 Keyboard 1 Movement Numpad Keybinds 0 Fullscreen 2 Font 24/Smallcaps Map View 76x50 Zoom Use 0% Tactical HUD 1 Map Filters NONE Filters NONE Steam 1 RUN: 211327ac-556f-4603-b250-17b76682b6f6